[Event "15th Arad Open 2022"]
[Site "Arad"]
[Date "2022.08.09"]
[Round "3.1"]
[White "Ionescu, Irina"]
[Black "Manolache, Marius"]
[Result "0-1"]
[ECO "B08"]
[WhiteElo "2125"]
[BlackElo "2469"]
[Annotator "TA"]
[PlyCount "124"]
[EventDate "2022.08.08"]
[EventType "swiss"]
[EventCountry "ROU"]
[SourceTitle "playchess.com"]
[Source "ChessBase"]
[SourceQuality "1"]
[TimeControl "5400+30"]

{[%evp 15,124,50,42,47,60,41,49,74,56,7,31,47,51,37,41,43,119,72,152,146,147,43,48,45,75,50,47,50,113,114,134,75,143,66,93,43,66,62,95,91,94,86,98,112,122,116,118,112,152,154,165,175,143,107,166,160,179,163,177,143,147,131,147,140,160,164,146,146,242,185,231,190,331,289,306,298,274,-39,-39,-39,-39,-39,-39,-39,-39,-39,-39,-39,-39,-39,-39,-39,-39,-39,-39,-39,0,-7,-7,-7,0,-7,0,0,0,0,0,0,-5,-16,0]} 1. e4 {[%emt 0:00:10]} d6 {[%emt 0:00:10]} 2. d4 {[%emt 0:00:09]} Nf6 {[%emt 0:00:05]} 3. Nc3 {[%emt 0:00:15]} g6 {[%emt 0:00:07]} 4. Nf3 {[%emt 0:00:31]} Bg7 {[%emt 0:00:10]} 5. Be2 {[%emt 0:00:27]} O-O {[%emt 0:00:13]} 6. O-O {[%emt 0:00:23]} a6 {[%emt 0:00:27]} 7. a4 {[%emt 0:00:21]} b6 {[%emt 0:01:14]} 8. Re1 {[%emt 0:04:35]} Bb7 {[%emt 0:06:28]} 9. e5 {[%emt 0:04:20] B08: Pirc Defence: Classical System.} dxe5 {[%emt 0:00:12]} 10. dxe5 {[%emt 0:03:19] [#]} Ne4 $146 {[%emt 0:18:06]} ({Predecessor:} 10... Nd5 11. Nxd5 Bxd5 12. Bg5 Nc6 13. Ra3 Be6 14. Bd3 h6 15. Bf4 Nb4 16. Qd2 c5 17. Bxh6 Nxd3 18. Rxd3 {1-0 (25) Houska,J (2364)-Pym,T (2114) Swansea 2006}) 11. Nxe4 {[%emt 0:04:18] White is slightly better.} Bxe4 {[%emt 0:00:36]} 12. Bg5 {[%emt 0:01:30]} (12. e6 $14 {is more appropriate.} f5 13. Qxd8 Rxd8 14. c3) 12... Nc6 {[%emt 0:06:13]} 13. c3 {[%emt 0:10:26]} h6 {[%emt 0:02:26]} 14. Bf4 {[%emt 0:02:31][%cal Oe5e6]} g5 {[%emt 0:01:46]} 15. Bg3 {[%emt 0:00:22][%cal Oe5e6]} Ra7 {[%emt 0:10:20]} (15... Qxd1 $14 16. Raxd1 e6) 16. h4 {[%emt 0:15:20]} (16. Qc1 $142) 16... g4 {[%emt 0:00:20]} (16... gxh4 $142 17. Nxh4 e6) 17. Nd4 $16 {[%emt 0:03:53]} Nxd4 {[%emt 0:09:26]} 18. Qxd4 {[%emt 0:04:29]} (18. cxd4 $16 e6 19. Bxg4) 18... Qxd4 $14 {[%emt 0:00:26]} 19. cxd4 {[%emt 0:00:04]} Bf5 {[%emt 0:10:25]} 20. Rac1 {[%emt 0:01:16]} Rd8 {[%emt 0:00:24]} 21. Red1 {[%emt 0:00:15]} e6 {[%emt 0:00:11]} ({Black should try} 21... h5 $14) 22. h5 $16 {[%emt 0:01:36]} Bf8 {[%emt 0:00:25][%cal Ob6b5]} 23. Bf4 {[%emt 0:01:11]} (23. f3 $142) 23... Rd7 {[%emt 0:06:35]} (23... c5 $142) 24. Rc3 {[%emt 0:04:10]} (24. f3 $16) 24... Ra8 {[%emt 0:00:34]} 25. Bxg4 {[%emt 0:07:34]} Bxg4 $14 {[%emt 0:00:10]} 26. Rg3 {[%emt 0:00:07]} c5 {[%emt 0:00:49][%cal Oc5d4]} 27. Rxg4+ {[%emt 0:00:14]} Kh7 {[%emt 0:00:06]} 28. Be3 {[%emt 0:03:47]} Rad8 {[%emt 0:00:08]} 29. Kf1 {[%emt 0:00:21]} Bg7 {[%emt 0:01:24]} 30. Re4 {[%emt 0:00:18]} Rd5 {[%emt 0:01:44][%cal Og7e5]} 31. f4 {[%emt 0:02:48]} c4 {[%emt 0:03:03]} 32. Rc1 {[%emt 0:01:19]} b5 {[%emt 0:00:31]} 33. axb5 {[%emt 0:01:11]} axb5 {[%emt 0:02:02]} 34. g4 {[%emt 0:02:13]} Ra8 {[%emt 0:00:08]} (34... f5 $16) 35. Bf2 $18 {[%emt 0:00:23]} Ra2 {[%emt 0:00:39]} 36. Re2 {[%emt 0:00:38]} Bf8 {[%emt 0:00:18]} 37. b3 {[%emt 0:06:52]} cxb3 {[%emt 0:00:16]} 38. Rb1 {[%emt 0:00:05] Against b2} b4 {[%emt 0:00:30]} 39. Rxb3 {[%emt 0:00:31]} Ra3 {[%emt 0:00:14]} 40. Reb2 {[%emt 0:00:00]} Rd8 {[%emt 0:00:00]} 41. Ke2 {[%emt 0:00:00]} Be7 {[%emt 0:00:00]} (41... Rc8 $16 42. Be3 Ra1) 42. f5 {[%emt 0:00:00]} Rc8 {[%emt 0:00:00]} (42... Bf8 {might work better.} 43. Be3 Rc8) 43. fxe6 {[%emt 0:01:49]} fxe6 {[%emt 0:00:00] [#]} (43... Rxb3 $142 44. Rxb3 fxe6) 44. Rxa3 $1 {[%emt 0:01:27]} bxa3 {[%emt 0:00:00][%mdl 4096] Endgame KRB-KRB} 45. Rb7 {[%emt 0:00:16]} Re8 {[%emt 0:00:00]} 46. Bh4 $2 {[%emt 0:00:46]} (46. Ra7 $18) 46... a2 $15 {[%emt 0:00:00]} 47. Ra7 {[%emt 0:02:08]} a1=Q {[%emt 0:00:00]} 48. Rxa1 {[%emt 0:00:14] [#] Ra7 is the strong threat.} Bxh4 {[%emt 0:00:00] KRB-KR} 49. Ra6 {[%emt 0:00:16]} Re7 {[%emt 0:00:00]} 50. Ke3 {[%emt 0:03:44]} Kg7 {[%emt 0:00:00]} 51. Ke4 {[%emt 0:00:48]} Kf7 {[%emt 0:00:00]} 52. d5 {[%emt 0:03:06]} exd5+ {[%emt 0:00:00]} 53. Kxd5 {[%emt 0:00:33]} Bg5 {[%emt 0:00:03]} 54. Ke4 {[%emt 0:00:27]} Rb7 {[%emt 0:01:56]} 55. Kf5 {[%emt 0:00:19]} Rb4 {[%emt 0:00:22][%csl Gg5][%cal Rb4f4]} 56. Ra7+ {[%emt 0:01:36] The position is equal.} Ke8 {[%emt 0:00:18]} 57. Ra8+ {[%emt 0:00:27]} Kd7 {[%emt 0:00:13]} 58. Ra7+ {[%emt 0:00:41]} Kc6 {[%emt 0:00:16]} 59. e6 {[%emt 0:03:26]} Rf4+ {[%emt 0:00:49]} 60. Ke5 {[%emt 0:00:07] Hoping for e7.} Rf1 {[%emt 0:00:48]} 61. Ra6+ {[%emt 0:00:58]} Kb7 {[%emt 0:00:21]} 62. Ra4 {[%emt 0:00:04]} Re1+ {[%emt 0:01:20][%mdl 32768] Blacks defense is rewarded with a draw.  Weighted Error Value: White=0.23 (precise) /Black=0.20 (precise) . Loss on time!?} 0-1

[Event "15th Arad Open 2022"]
[Site "Arad"]
[Date "2022.08.09"]
[Round "3.2"]
[White "Srbis, Jurica"]
[Black "Magold, Filip"]
[Result "0-1"]
[ECO "B11"]
[WhiteElo "2472"]
[BlackElo "2247"]
[Annotator "RC"]
[PlyCount "78"]
[EventDate "2022.08.08"]
[EventType "swiss"]
[EventCountry "ROU"]
[SourceTitle "playchess.com"]
[Source "ChessBase"]
[SourceQuality "1"]
[TimeControl "5400+30"]

1. e4 {[%emt 0:00:09]} c6 {[%emt 0:00:13]} 2. Nc3 {[%emt 0:01:39]} d5 {[%emt 0:00:12]} 3. Nf3 {[%emt 0:00:10]} dxe4 {[%emt 0:00:05]} 4. Nxe4 {[%emt 0:00:07]} Nf6 {[%emt 0:00:15]} 5. Qe2 {[%emt 0:00:23]} Nxe4 {[%emt 0:00:21]} 6. Qxe4 {[%emt 0:00:09]} Nd7 {[%emt 0:00:03]} 7. Bc4 {[%emt 0:00:43]} Nf6 {[%emt 0:05:49]} 8. Ne5 {[%emt 0:00:37]} Nd5 {[%emt 0:03:23]} 9. d4 {[%emt 0:09:46]} Be6 {[%emt 0:06:15]} 10. f4 {[%emt 0:11:31]} g6 {[%emt 0:06:00]} 11. O-O {[%emt 0:07:43]} Bg7 {[%emt 0:02:38]} 12. Qe2 {[%emt 0:11:33]} Qb6 {[%emt 0:08:48]} 13. c3 {[%emt 0:01:25]} O-O {[%emt 0:09:38]} 14. Kh1 {[%emt 0:03:58]} Rad8 {[%emt 0:01:29]} 15. Bb3 {[%emt 0:07:17]} c5 {[%emt 0:13:43]} 16. dxc5 {[%emt 0:10:52]} Qxc5 {[%emt 0:00:08]} 17. Bd2 {[%emt 0:00:21]} Nc7 {[%emt 0:05:51]} 18. Be3 {[%emt 0:00:47]} Qa5 {[%emt 0:01:59]} 19. Bd4 {[%emt 0:01:40]} Bd5 {[%emt 0:07:11]} 20. Qe3 {[%emt 0:06:03]} b6 {[%emt 0:11:56]} 21. c4 {[%emt 0:01:13]} Ba8 {[%emt 0:00:07]} 22. Bc3 {[%emt 0:00:47]} Qa6 {[%emt 0:00:41]} 23. Rae1 {[%emt 0:01:03]} Qb7 {[%emt 0:02:03]} 24. Rf2 {[%emt 0:01:07]} Na6 {[%emt 0:04:20]} 25. Bc2 {[%emt 0:03:39]} Nc5 {[%emt 0:03:11]} 26. f5 {[%emt 0:01:29]} Nd7 {[%emt 0:04:21]} 27. Ng4 {[%emt 0:00:48]} Bxc3 {[%emt 0:01:55]} 28. Qxc3 {[%emt 0:01:25]} Nf6 {[%emt 0:00:01]} 29. Nxf6+ {[%emt 0:05:30]} exf6 {[%emt 0:00:03]} 30. Qxf6 {[%emt 0:03:28]} Rfe8 {[%emt 0:01:32]} 31. Qc3 {[%emt 0:01:05]} Rxe1+ {[%emt 0:00:50]} 32. Qxe1 {[%emt 0:00:01]} Qc6 {[%emt 0:00:30]} 33. fxg6 {[%emt 0:00:13]} hxg6 {[%emt 0:00:08]} 34. b3 {[%emt 0:06:33]} Re8 {[%emt 0:00:25]} 35. Qc3 {[%emt 0:00:55]} Qc5 {[%emt 0:01:17]} 36. Qd2 {[%emt 0:00:59]} Qe5 {[%emt 0:00:26]} 37. Rf1 {[%emt 0:01:19]} Qe2 {[%emt 0:00:14]} 38. Qxe2 {[%emt 0:00:28]} Rxe2 {[%emt 0:00:02]} 39. Bd1 {[%emt 0:00:10]} Bxg2+ {[%emt 0:00:03]} 0-1

[Event "15th Arad Open 2022"]
[Site "Arad"]
[Date "2022.08.09"]
[Round "3.3"]
[White "Coicev, Matei-Andrei"]
[Black "Ramoutar, Alan-Safar"]
[Result "0-1"]
[ECO "B15"]
[WhiteElo "2087"]
[BlackElo "2453"]
[Annotator "TA"]
[PlyCount "144"]
[EventDate "2022.08.08"]
[EventType "swiss"]
[EventCountry "ROU"]
[SourceTitle "playchess.com"]
[Source "ChessBase"]
[SourceQuality "1"]
[TimeControl "5400+30"]

{[%evp 16,144,29,23,33,0,0,0,0,0,6,0,5,-39,-34,-57,-61,-58,-66,-51,-65,-57,-48,-56,-51,-96,-89,-107,-106,-108,-36,-101,-64,-103,-79,-85,-70,-69,-69,-69,-58,-75,-69,-74,0,0,0,0,0,-15,0,0,0,0,0,0,0,0,62,0,93,100,95,102,96,98,111,81,91,0,0,0,0,-17,-13,-16,-8,-51,-16,-73,-71,-105,-116,-136,-136,-136,-136,-151,-159,-183,-167,-243,-236,-224,-108,-124,-8,-22,-8,-8,-8,-8,-8,-8,-8,-70,-70,-169,-175,-167,-70,-433,-433,-29981,-29982,-29983,-29984,-29984,-29985,-29985,-29986,-29984,-325,-29993,-29994,-29994,-29980,-29979,-29979,-29958,-5117]} 1. e4 {[%emt 0:00:02]} c6 {[%emt 0:02:09]} 2. Nc3 {[%emt 0:01:01]} d5 {[%emt 0:00:20]} 3. Nf3 {[%emt 0:00:37]} g6 {[%emt 0:00:33]} 4. d4 {[%emt 0:01:38]} Bg7 {[%emt 0:00:34]} 5. h3 {[%emt 0:03:12]} dxe4 {[%emt 0:00:40]} 6. Nxe4 {[%emt 0:00:11]} Nf6 {[%emt 0:00:11]} 7. Nxf6+ {[%emt 0:02:11]} exf6 {[%emt 0:00:11]} 8. Bd3 {[%emt 0:01:42]} O-O {[%emt 0:00:43]} 9. O-O {[%emt 0:00:42]} a5 {[%emt 0:02:43] B15: Caro-Kann: 3 Nc3: 3...g6 and 3...dxe4 4 Nxe4 Nf6 5 Nxf6+ exf6.} 10. a4 {[%emt 0:03:46]} Na6 {[%emt 0:00:37]} 11. c3 {[%emt 0:01:28]} Be6 {[%emt 0:02:57] The position is equal.} 12. Bf4 {[%emt 0:05:22]} Nc7 {[%emt 0:02:17] [#]} 13. c4 $146 {[%emt 0:05:58]} ({Predecessor:} 13. Nd2 Nd5 14. Bh2 Re8 15. Ne4 b6 16. Re1 f5 17. Nd6 Re7 18. Nc4 f6 19. Qf3 {½-½ (31) Triapishko,A (2510)-Vastrukhin,O (2401) Chess.com INT 2021}) 13... Na6 {[%emt 0:07:11]} 14. c5 {[%emt 0:03:20]} Nb4 {[%emt 0:01:55]} 15. Be2 {[%emt 0:05:25]} Re8 {[%emt 0:01:50]} 16. Bd6 {[%emt 0:08:37]} Bf8 {[%emt 0:00:42]} 17. Bxf8 {[%emt 0:00:42]} Kxf8 {[%emt 0:00:34]} 18. Qd2 {[%emt 0:02:04]} Kg7 {[%emt 0:00:38]} 19. Rfe1 {[%emt 0:02:33]} Qd7 {[%emt 0:08:48]} 20. Rac1 {[%emt 0:06:45]} Bd5 {[%emt 0:13:02]} 21. Nh2 {[%emt 0:01:53]} h5 {[%emt 0:06:24] Against Ng4} 22. Rc3 {[%emt 0:02:17]} Be4 {[%emt 0:04:31]} (22... Re4 $17 23. Re3 Rxe3 24. fxe3 Qf5) 23. Bf3 {[%emt 0:05:19]} (23. Nf1 $15) 23... Bf5 {[%emt 0:08:58]} 24. Rce3 {[%emt 0:03:16]} Rxe3 {[%emt 0:11:25]} 25. fxe3 {[%emt 0:00:26]} Rd8 {[%emt 0:01:14]} 26. Nf1 {[%emt 0:02:13]} Bd3 {[%emt 0:01:43]} 27. Ng3 {[%emt 0:02:33]} h4 {[%emt 0:01:46]} 28. Nh1 {[%emt 0:01:54]} f5 {[%emt 0:00:30]} 29. Nf2 {[%emt 0:01:12]} Bc4 {[%emt 0:01:20]} (29... Bc2 $17) 30. Qc3 $36 {[%emt 0:03:34][%mdl 2048] White is more active.} Bd5 {[%emt 0:01:12]} 31. e4 $1 {[%emt 0:02:52]} fxe4 {[%emt 0:01:03]} 32. Bxe4 {[%emt 0:00:33]} Qc7 {[%emt 0:07:48]} 33. Qd2 {[%emt 0:05:18]} Qg3 {[%emt 0:03:33]} 34. Ng4 {[%emt 0:04:04] Threatening mate with Qh6+.} Rh8 {[%emt 0:00:54] Inhibits Qh6+. Active counter play!} 35. Bxd5 {[%emt 0:05:22]} Nxd5 {[%emt 0:00:08]} 36. Rf1 {[%emt 0:01:01] Threatens to win with Ne5.} Rh5 {[%emt 0:03:49]} (36... f6 $11) 37. Ne5 {[%emt 0:02:31]} ({White should play} 37. Rf3 $14 Qc7 38. Qf2) 37... f6 {[%emt 0:01:23]} (37... Rf5 $1 $11) 38. Rf3 $1 $16 {[%emt 0:01:29]} Qg5 {[%emt 0:00:34]} 39. Qxg5 {[%emt 0:00:17]} Rxg5 {[%emt 0:00:17][%mdl 4096] Endgame KRN-KRN} 40. Nc4 {[%emt 0:00:00]} Nb4 {[%emt 0:00:00]} 41. Nxa5 {[%emt 0:00:00]} Rd5 {[%emt 0:00:00][%cal Bg5d5,Bd5d8,Bd8a8][%mdl 32]} 42. Nb3 {[%emt 0:00:00]} (42. Re3 $16) 42... Rd8 $11 {[%emt 0:00:00]} 43. Kf2 {[%emt 0:00:00]} g5 {[%emt 0:00:00]} 44. Ke2 {[%emt 0:02:17]} Ra8 {[%emt 0:00:00][%mdl 1024] Against Na5. Black has compensation.} 45. a5 {[%emt 0:00:21]} Nd5 {[%emt 0:00:00]} 46. Kd2 {[%emt 0:01:58]} Kg6 {[%emt 0:00:00]} 47. Rf2 {[%emt 0:01:19]} (47. Rf1 $11 {remains equal.}) 47... f5 $17 {[%emt 0:00:00]} 48. Kd3 {[%emt 0:00:49]} g4 $1 {[%emt 0:00:00]} 49. hxg4 {[%emt 0:00:29]} fxg4 {[%emt 0:00:00]} 50. Nd2 {[%emt 0:00:22]} Rxa5 {[%emt 0:03:51]} 51. Nc4 {[%emt 0:00:11]} Ra1 {[%emt 0:01:10]} 52. Ne5+ {[%emt 0:00:11]} Kg5 {[%emt 0:00:22] Strongly threatening ...Rd1+.} 53. Nf7+ {[%emt 0:01:04]} (53. Rf8 $142) 53... Kh5 $19 {[%emt 0:00:10]} 54. Ne5 {[%emt 0:00:32]} h3 {[%emt 0:01:28]} (54... Rd1+ $19 {has better winning chances.} 55. Ke4 Re1+ 56. Kd3 h3 57. gxh3 (57. Rf5+ $2 Kh6 $19) 57... g3 58. Rf5+ Kh6 59. Nf7+ Kg6 60. Rg5+ Kxf7 61. Rxg3 Nf4+ 62. Kc2 Re2+ 63. Kd1 Re4) 55. gxh3 {[%emt 0:00:27]} gxh3 {[%emt 0:01:23]} ({Better is} 55... g3 $17 56. Rf8 g2) 56. Rf7 {[%emt 0:00:57]} Kh4 {[%emt 0:02:20]} 57. Rh7+ {[%emt 0:00:11]} Kg3 {[%emt 0:00:07] White must now prevent ...Rd1+.} 58. Rg7+ {[%emt 0:00:04]} Kf4 {[%emt 0:00:30] ...Rd1+ is the strong threat.} 59. Rf7+ {[%emt 0:00:53]} Kg5 {[%emt 0:00:12]} (59... Kg3 $5 60. Rg7+ Kf4 61. Rf7+ Kg5 62. Rxb7 Nf6 $11) 60. Rg7+ {[%emt 0:00:05]} (60. Rxb7 $11 Rd1+ 61. Ke2 Rxd4 62. Nf3+ Kg6 63. Kf2 (63. Nxd4 h2 $17)) 60... Kf5 $1 $15 {[%emt 0:00:22]} 61. Rf7+ {[%emt 0:00:43]} (61. Nf3 $15) 61... Nf6 $1 $19 {[%emt 0:00:32]} 62. Nf3 {[%emt 0:01:13] [#]} Rh1 {[%emt 0:01:16]} (62... Re1 $1 $19 {[%mdl 512] aiming for ...Re6.} 63. b3 (63. Nxe1 $2 {loses.} h2 $19) (63. Rxb7 $2 Kf4 $19) (63. Kd2 Rh1) 63... Re6) 63. Kc3 $2 {[%emt 0:01:19][%mdl 8192] This costs White the game.} (63. Rxb7 $15 Rf1 64. Ke2) 63... Rf1 {[%emt 0:00:22]} ({And not} 63... h2 64. Kb3 $11) 64. Nd2 {[%emt 0:00:38]} (64. Nh2 $19 Rg1 65. Rf8) 64... Rc1+ {[%emt 0:00:15]} (64... h2 $2 65. Nxf1 h1=N 66. Ne3+ Ke6 67. Rxb7 $18) 65. Kd3 {[%emt 0:00:37]} h2 {[%emt 0:00:15]} 66. Ne4 {[%emt 0:00:14]} Rd1+ {[%emt 0:00:40]} 67. Ke3 {[%emt 0:00:05]} Re1+ {[%emt 0:01:38]} 68. Kf2 {[%emt 0:00:14] [#]} h1=Q $2 {[%emt 0:00:00]} 69. Rxf6+ $2 {[%emt 0:00:13]} (69. Ng3+ $19 Kg5 70. Nxh1 Rxh1 71. Rxb7) 69... Kxe4 {[%emt 0:00:00][%csl Ge1][%cal Rh1g1] Black mates.} 70. Re6+ {[%emt 0:00:03]} Kxd4 {[%emt 0:00:00]} 71. Rxe1 {[%emt 0:00:02]} Qh2+ {[%emt 0:00:10]} 72. Kf3 {[%emt 0:00:04]} Kxc5 {[%emt 0:00:09] Weighted Error Value: White=0.18 (very precise) /Black=0.16 (very precise)} (72... Qxb2 $142 73. Rg1 Qc3+ 74. Kg4 Kxc5 75. Rh1 Qd4+ 76. Kg3 Qe3+ 77. Kh2 Qh6+ 78. Kg2 {[#]} Qxh1+ $3 {[%mdl 512]} 79. Kxh1 b5 80. Kg1 b4 81. Kh2 b3 82. Kh3 b2 83. Kh4 b1=Q 84. Kg5 Qe4 85. Kf6 Kd6 86. Kf7 Qe5 87. Kf8 Ke6 88. Kg8 Qg3+ 89. Kh7 Kf7 90. Kh8 Qh4#) 0-1

[Event "15th Arad Open 2022"]
[Site "Arad"]
[Date "2022.08.09"]
[Round "3.4"]
[White "David, Alexandru-Vasile"]
[Black "Magold, Victor"]
[Result "1/2-1/2"]
[ECO "E27"]
[WhiteElo "2433"]
[BlackElo "2074"]
[Annotator "TA"]
[PlyCount "112"]
[EventDate "2022.08.08"]
[EventType "swiss"]
[EventCountry "ROU"]
[SourceTitle "playchess.com"]
[Source "ChessBase"]
[SourceQuality "1"]
[TimeControl "5400+30"]

{[%evp 17,112,-11,37,39,49,24,34,7,4,0,0,0,0,0,0,0,0,0,0,0,0,0,0,-7,72,66,70,66,75,37,84,89,142,79,81,82,91,38,40,27,47,47,71,0,125,123,124,116,114,110,111,112,128,103,87,76,131,131,408,392,881,806,767,713,1272,1266,1187,837,723,0,0,0,0,0,0,0,0,0,0,0,0,0,0,0,0,0,0,0,0,0,0,0,0,0,0,0,0]} 1. d4 {[%emt 0:00:10]} Nf6 {[%emt 0:00:05]} 2. c4 {[%emt 0:00:18]} e6 {[%emt 0:00:07]} 3. Nc3 {[%emt 0:00:13]} Bb4 {[%emt 0:00:37]} 4. f3 {[%emt 0:00:14]} c5 {[%emt 0:00:06]} 5. a3 {[%emt 0:00:07]} Bxc3+ {[%emt 0:00:06]} 6. bxc3 {[%emt 0:00:06]} O-O {[%emt 0:00:12]} 7. e4 {[%emt 0:01:29]} d6 {[%emt 0:01:01]} 8. Bd3 {[%emt 0:00:10]} Nc6 {[%emt 0:02:28]} 9. Ne2 {[%emt 0:00:27]} e5 {[%emt 0:02:53]} (9... Nd7 $11) 10. d5 $14 {[%emt 0:03:50] has lost popularity (10.0-0). E27: Nimzo-Indian: Sämisch: 5...0-0 6 f3.} Ne7 {[%emt 0:02:41]} 11. g4 {[%emt 0:01:50][%cal Bg2g4,Bg4h5,Bh5h6,Bh6g7][%mdl 32] [#]} h5 $146 {[%emt 0:16:17]} ({Predecessor:} 11... Ng6 12. h4 h5 13. g5 Nh7 14. Ng3 f6 15. gxf6 Qxf6 16. Nxh5 Qxf3 17. Qxf3 Rxf3 18. Rg1 Nhf8 19. Be2 Rf7 20. Bg5 Bh3 21. Rg3 Bd7 22. Kd2 Kh7 23. Rag1 a6 {½-½ (23) Herrera,J (2292)-Valderrama Quiceno,E (2443) Bogota 2018}) 12. h3 {[%emt 0:03:43] White is slightly better.} Nh7 $1 {[%emt 0:09:50]} 13. gxh5 {[%emt 0:32:01]} f5 $1 {[%emt 0:02:15]} 14. h6 {[%emt 0:01:51]} Ng6 {[%emt 0:14:40]} 15. hxg7 {[%emt 0:02:15]} Qh4+ {[%emt 0:00:51]} 16. Kd2 {[%emt 0:00:17][%cal Be1d2,Bd2c2,Bc2c1][%mdl 32]} ({Reject} 16. Kf1 Kxg7 17. Qe1 f4 $15) 16... Rf7 {[%emt 0:00:03]} 17. Kc2 {[%emt 0:03:43]} f4 {[%emt 0:05:02]} 18. Bd2 {[%emt 0:08:24]} Ng5 {[%emt 0:05:17]} 19. Ng1 {[%emt 0:09:24]} Rxg7 {[%emt 0:14:41]} 20. Be1 {[%emt 0:00:23]} Qh5 {[%emt 0:00:28]} (20... Qh8 $1 $11 {keeps the balance.}) 21. h4 $16 {[%emt 0:00:05]} Bd7 {[%emt 0:01:28] [#] White must now prevent ...Ba4+.} 22. Kc1 {[%emt 0:00:05]} Kf7 {[%emt 0:00:57]} 23. Ra2 {[%emt 0:00:29]} Rh8 {[%emt 0:02:38]} (23... Rag8 $14) 24. Rb2 {[%emt 0:00:18]} Bc8 {[%emt 0:00:47]} (24... Rb8 $142) 25. Rhh2 {[%emt 0:05:28]} ({Better is} 25. Be2) 25... Nh7 {[%emt 0:03:27]} 26. Bf1 {[%emt 0:01:47][%cal Bd3f1,Bf1h3,Bh3e6][%mdl 32]} Ne7 {[%emt 0:00:34]} 27. Nh3 {[%emt 0:02:56]} ({White should play} 27. Rbg2 $16) 27... Rhg8 $14 {[%emt 0:00:27]} 28. Rh1 {[%emt 0:07:47]} Kf8 {[%emt 0:06:20]} 29. Rbh2 {[%emt 0:00:38][%cal Oh3g5]} Bd7 {[%emt 0:02:54]} 30. Qe2 {[%emt 0:01:35]} (30. a4 $16) 30... Bxh3 {[%emt 0:04:08]} (30... Nc8 $1 $11 {remains equal.}) 31. Bxh3 $16 {[%emt 0:00:25]} Nf6 {[%emt 0:00:07] Prevents Bg4.} 32. Be6 {[%emt 0:00:25]} Rh8 {[%emt 0:00:16]} 33. Rg2 {[%emt 0:00:15]} Rxg2 {[%emt 0:00:51]} 34. Qxg2 {[%emt 0:00:06]} Rh6 {[%emt 0:00:36]} 35. Rf1 {[%emt 0:02:10] White is much more active.} Qe8 {[%emt 0:00:55]} 36. Qc2 {[%emt 0:01:56] Prevents Qa4.} Ng6 {[%emt 0:01:22]} (36... Rg6 $142) 37. Rg1 {[%emt 0:01:08] Strongly threatening Qg2.} Qe7 $2 {[%emt 0:00:55][%mdl 8192] [#]} (37... Ne7 $16 {was worth a try.} 38. Rg2 (38. Qg2 Rg6 $11) 38... Qh5) 38. Qg2 $1 $18 {[%emt 0:01:03]} Qh7 $2 {[%emt 0:00:22]} (38... Ke8 39. Qg5 Qf8) 39. Bf5 {[%emt 0:01:18]} Kf7 {[%emt 0:00:07]} 40. Qg5 {[%emt 0:00:00][%cal Oh4h5] aiming for h5!} Qg7 {[%emt 0:00:00]} 41. h5 {[%emt 0:00:00]} Nxh5 {[%emt 0:00:00]} 42. Be6+ {[%emt 0:00:00] A strong pair of Bishops.} Ke8 {[%emt 0:00:00]} 43. Bh4 $2 {[%emt 0:00:00]} (43. Rh1 $18) 43... Nxh4 $11 {[%emt 0:00:00][%cal Bg6h4,Bh4g2,Bg2e1,Be1d3,Bd3f2][%mdl 32] The position is equal.} 44. Qxh5+ {[%emt 0:00:00]} Rxh5 {[%emt 0:00:00]} 45. Rxg7 {[%emt 0:00:00][%mdl 4096] Endgame KRB-KRN} Rh6 {[%emt 0:00:00]} 46. Bg4 {[%emt 0:00:00]} ({Much weaker is} 46. Rxb7 Nxf3 47. Kd1 Rh2 48. Bd7+ Kd8 $17) 46... Ng2 {[%emt 0:00:00]} 47. Rxb7 {[%emt 0:00:00]} a5 {[%emt 0:00:00]} 48. Bd7+ {[%emt 0:00:00]} Kf8 {[%emt 0:00:00]} 49. Kb2 {[%emt 0:01:00]} Ne1 {[%emt 0:00:09]} 50. Bg4 {[%emt 0:01:34]} Rg6 {[%emt 0:01:08]} 51. Kc1 {[%emt 0:03:00]} Nd3+ {[%emt 0:00:03]} 52. Kd2 {[%emt 0:01:53]} Nf2 {[%emt 0:00:04]} 53. Rb8+ {[%emt 0:01:29]} Ke7 {[%emt 0:00:19]} 54. Rb7+ {[%emt 0:00:05]} Kf8 {[%emt 0:00:13]} 55. Rb8+ {[%emt 0:00:05]} Ke7 {[%emt 0:00:06]} 56. Rb7+ {[%emt 0:00:04]} Kf8 {[%emt 0:00:04] Black escapes into a draw.  Weighted Error Value: White=0.16 (very precise) /Black=0.20 (precise)} 1/2-1/2